{"text_format":"3","workbook":"xlsx","n_sheets":1,"sheets":["Grocery List"],"not_rendered":{"images":1,"defined_names":3},"read":"whole","date_system":"1900"}

{"sheet":"Grocery List","index":0,"n_rows":31,"n_cols":8,"rows_kept":31,"merged":[[1,1,1,2]]}
[null,"Grocery List"]
[null,"DATE"]
[null,"Done?","Item","Category","Quantity","Price","Extended Price","Brand/Comments"]
[null,null,"Oranges","Produce",null,null,{"$f":"IFERROR(SUM(GroceryList[Quantity]*GroceryList[Price]), \"\")","v":{"v":0,"d":"£0.00"}}]
[null,null,"Apples","Produce",null,null,{"$f":"IFERROR(SUM(GroceryList[Quantity]*GroceryList[Price]), \"\")","v":{"v":0,"d":"£0.00"}}]
[null,null,"Bananas","Produce",null,null,{"$f":"IFERROR(SUM(GroceryList[Quantity]*GroceryList[Price]), \"\")","v":{"v":0,"d":"£0.00"}}]
[null,null,"Lettuce","Produce",null,null,{"$f":"IFERROR(SUM(GroceryList[Quantity]*GroceryList[Price]), \"\")","v":{"v":0,"d":"£0.00"}}]
[null,null,"Tomatoes","Produce",null,null,{"$f":"IFERROR(SUM(GroceryList[Quantity]*GroceryList[Price]), \"\")","v":{"v":0,"d":"£0.00"}},"  "]
[null,null,"Milk ","Dairy",null,null,{"$f":"IFERROR(SUM(GroceryList[Quantity]*GroceryList[Price]), \"\")","v":{"v":0,"d":"£0.00"}}]
[null,null,"Cheese","Dairy",null,null,{"$f":"IFERROR(SUM(GroceryList[Quantity]*GroceryList[Price]), \"\")","v":{"v":0,"d":"£0.00"}}]
[null,null,"Eggs","Dairy",null,null,{"$f":"IFERROR(SUM(GroceryList[Quantity]*GroceryList[Price]), \"\")","v":{"v":0,"d":"£0.00"}}]
[null,null,"Cottage cheese","Dairy",null,null,{"$f":"IFERROR(SUM(GroceryList[Quantity]*GroceryList[Price]), \"\")","v":{"v":0,"d":"£0.00"}}]
[null,null,"Beef","Meat",null,null,{"$f":"IFERROR(SUM(GroceryList[Quantity]*GroceryList[Price]), \"\")","v":{"v":0,"d":"£0.00"}}]
[null,null,"Poultry","Meat",null,null,{"$f":"IFERROR(SUM(GroceryList[Quantity]*GroceryList[Price]), \"\")","v":{"v":0,"d":"£0.00"}}]
[null,null,"Ham","Meat",null,null,{"$f":"IFERROR(SUM(GroceryList[Quantity]*GroceryList[Price]), \"\")","v":{"v":0,"d":"£0.00"}}]
[null,null,"Juice","Drinks",null,null,{"$f":"IFERROR(SUM(GroceryList[Quantity]*GroceryList[Price]), \"\")","v":{"v":0,"d":"£0.00"}}]
[null,null,"Coffee","Drinks",null,null,{"$f":"IFERROR(SUM(GroceryList[Quantity]*GroceryList[Price]), \"\")","v":{"v":0,"d":"£0.00"}}]
[null,null,"Tea","Drinks",null,null,{"$f":"IFERROR(SUM(GroceryList[Quantity]*GroceryList[Price]), \"\")","v":{"v":0,"d":"£0.00"}}]
[null,null,"Water","Drinks",null,null,{"$f":"IFERROR(SUM(GroceryList[Quantity]*GroceryList[Price]), \"\")","v":{"v":0,"d":"£0.00"}}]
[null,null,"Noodles","Pasta",null,null,{"$f":"IFERROR(SUM(GroceryList[Quantity]*GroceryList[Price]), \"\")","v":{"v":0,"d":"£0.00"}}]
[null,null,"Rice","Pasta",null,null,{"$f":"IFERROR(SUM(GroceryList[Quantity]*GroceryList[Price]), \"\")","v":{"v":0,"d":"£0.00"}}]
[null,null,"Canned","Soup",null,null,{"$f":"IFERROR(SUM(GroceryList[Quantity]*GroceryList[Price]), \"\")","v":{"v":0,"d":"£0.00"}}]
[null,null,"Dry mix","Soup",null,null,{"$f":"IFERROR(SUM(GroceryList[Quantity]*GroceryList[Price]), \"\")","v":{"v":0,"d":"£0.00"}}]
[null,null,"Bread","Bakery",null,null,{"$f":"IFERROR(SUM(GroceryList[Quantity]*GroceryList[Price]), \"\")","v":{"v":0,"d":"£0.00"}}]
[null,null,"Crisps","Snacks",null,null,{"$f":"IFERROR(SUM(GroceryList[Quantity]*GroceryList[Price]), \"\")","v":{"v":0,"d":"£0.00"}}]
[null,null,"Pretzels","Snacks",null,null,{"$f":"IFERROR(SUM(GroceryList[Quantity]*GroceryList[Price]), \"\")","v":{"v":0,"d":"£0.00"}}]
[null,null,"Ice cream","Snacks",null,null,{"$f":"IFERROR(SUM(GroceryList[Quantity]*GroceryList[Price]), \"\")","v":{"v":0,"d":"£0.00"}}]
[null,null,"Cookies","Snacks",null,null,{"$f":"IFERROR(SUM(GroceryList[Quantity]*GroceryList[Price]), \"\")","v":{"v":0,"d":"£0.00"}}]
[null,null,"Paper plates","Supplies",null,null,{"$f":"IFERROR(SUM(GroceryList[Quantity]*GroceryList[Price]), \"\")","v":{"v":0,"d":"£0.00"}}]
[null,null,"Napkins","Supplies",null,null,{"$f":"IFERROR(SUM(GroceryList[Quantity]*GroceryList[Price]), \"\")","v":{"v":0,"d":"£0.00"}}]
[{"$nulls":6},{"$f":"SUBTOTAL(109,GroceryList[Extended Price])","v":{"v":0,"d":"£0.00"}}]